[Event "*** Titled Tuesday Blitz"]
[Site "Chess.com"]
[Date "2020.10.27"]
[Round "7"]
[White "MarkEvgenievich"]
[Black "keepitcoming"]
[Result "1/2-1/2"]
[WhiteElo "2317"]
[BlackElo "2539"]
[TimeControl "180+1"]
[EndTime "11:20:08 PDT"]
[Termination "Game drawn - insufficient material"]

1. d4 {[%clk 0:03:00.9]} 1... d5 {[%clk 0:02:59.7]} 2. c4 {[%clk 0:03:00.4]}
2... e6 {[%clk 0:02:59.2]} 3. Nc3 {[%clk 0:02:59.8]} 3... c5 {[%clk 0:02:58.6]}
4. cxd5 {[%clk 0:02:58]} 4... exd5 {[%clk 0:02:55.6]} 5. Nf3 {[%clk 0:02:55.9]}
5... Nc6 {[%clk 0:02:55.4]} 6. g3 {[%clk 0:02:54.2]} 6... Nf6 {[%clk 0:02:50.1]}
7. Bg2 {[%clk 0:02:54]} 7... Be7 {[%clk 0:02:49.1]} 8. O-O {[%clk 0:02:52.8]}
8... O-O {[%clk 0:02:49.5]} 9. Bg5 {[%clk 0:02:51.2]} 9... c4 {[%clk 0:02:48.2]}
10. Ne5 {[%clk 0:02:38.9]} 10... Be6 {[%clk 0:02:43.6]} 11. b3 {[%clk
0:02:34.6]} 11... Qa5 {[%clk 0:02:39.8]} 12. Qd2 {[%clk 0:02:31.8]} 12... Bb4
{[%clk 0:02:34.3]} 13. Bxf6 {[%clk 0:02:25.2]} 13... gxf6 {[%clk 0:02:22.5]} 14.
Nxc6 {[%clk 0:02:23.6]} 14... bxc6 {[%clk 0:02:22.5]} 15. Rfc1 {[%clk
0:02:23.3]} 15... Rfc8 {[%clk 0:02:17.9]} 16. bxc4 {[%clk 0:02:17.1]} 16... dxc4
{[%clk 0:02:09.7]} 17. a3 {[%clk 0:02:16.4]} 17... Bxc3 {[%clk 0:02:05.7]} 18.
Qxc3 {[%clk 0:02:13.8]} 18... Qxc3 {[%clk 0:02:05.2]} 19. Rxc3 {[%clk
0:02:12.3]} 19... Rab8 {[%clk 0:02:06.1]} 20. e3 {[%clk 0:02:06.2]} 20... Kf8
{[%clk 0:02:03.5]} 21. Bf1 {[%clk 0:02:05.4]} 21... c5 {[%clk 0:01:56.5]} 22. d5
{[%clk 0:01:54.7]} 22... Bxd5 {[%clk 0:01:47.9]} 23. Bxc4 {[%clk 0:01:53.2]}
23... Bxc4 {[%clk 0:01:48.8]} 24. Rxc4 {[%clk 0:01:52.5]} 24... Rb3 {[%clk
0:01:49.7]} 25. a4 {[%clk 0:01:48]} 25... Rb4 {[%clk 0:01:46.2]} 26. Rac1 {[%clk
0:01:46]} 26... a5 {[%clk 0:01:44.1]} 27. Rxc5 {[%clk 0:01:44.5]} 27... Rxc5
{[%clk 0:01:43.3]} 28. Rxc5 {[%clk 0:01:45]} 28... Rxa4 {[%clk 0:01:44.2]} 29.
Rc7 {[%clk 0:01:43.8]} 29... Kg7 {[%clk 0:01:33.8]} 30. h4 {[%clk 0:01:42.4]}
30... f5 {[%clk 0:01:29.7]} 31. Kg2 {[%clk 0:01:39.6]} 31... Ra2 {[%clk
0:01:27]} 32. Rc5 {[%clk 0:01:28.8]} 32... Kf6 {[%clk 0:01:25.4]} 33. Rc6+
{[%clk 0:01:27.9]} 33... Kg7 {[%clk 0:01:20.7]} 34. Rc5 {[%clk 0:01:25.7]} 34...
Kf6 {[%clk 0:01:20.3]} 35. Rc6+ {[%clk 0:01:25]} 35... Kg7 {[%clk 0:01:19.5]}
36. Ra6 {[%clk 0:01:24.5]} 36... a4 {[%clk 0:01:17.7]} 37. Kf3 {[%clk
0:01:24.1]} 37... a3 {[%clk 0:01:17.9]} 38. h5 {[%clk 0:01:23.3]} 38... h6
{[%clk 0:01:16.8]} 39. Kg2 {[%clk 0:01:17.4]} 39... Ra1 {[%clk 0:01:15.4]} 40.
Kf3 {[%clk 0:01:16.6]} 40... Ra2 {[%clk 0:01:13.8]} 41. Kg2 {[%clk 0:01:15.3]}
41... Ra1 {[%clk 0:01:13.3]} 42. Ra5 {[%clk 0:01:10.5]} 42... Kf6 {[%clk
0:01:10.9]} 43. Ra6+ {[%clk 0:01:10.4]} 43... Kg5 {[%clk 0:01:07.1]} 44. Ra5
{[%clk 0:00:59.9]} 44... Kg4 {[%clk 0:01:02.2]} 45. f3+ {[%clk 0:00:57.2]} 45...
Kxh5 {[%clk 0:00:59.7]} 46. Rxf5+ {[%clk 0:00:52]} 46... Kg6 {[%clk 0:01:00.6]}
47. Ra5 {[%clk 0:00:51.6]} 47... Kf6 {[%clk 0:00:58.5]} 48. e4 {[%clk
0:00:43.2]} 48... a2 {[%clk 0:00:53.2]} 49. f4 {[%clk 0:00:39.4]} 49... Kg6
{[%clk 0:00:48.8]} 50. Kh2 {[%clk 0:00:28.2]} 50... h5 {[%clk 0:00:44.9]} 51.
Rg5+ {[%clk 0:00:25.8]} 51... Kf6 {[%clk 0:00:41.4]} 52. Ra5 {[%clk 0:00:25.2]}
52... Kg6 {[%clk 0:00:39.9]} 53. Kg2 {[%clk 0:00:24.5]} 53... Kg7 {[%clk
0:00:37.2]} 54. Ra6 {[%clk 0:00:23.6]} 54... Kh7 {[%clk 0:00:35.8]} 55. e5
{[%clk 0:00:23.5]} 55... Kg7 {[%clk 0:00:28.2]} 56. Kh2 {[%clk 0:00:22.9]} 56...
h4 {[%clk 0:00:26.2]} 57. gxh4 {[%clk 0:00:20.6]} 57... Kh7 {[%clk 0:00:25.7]}
58. Kg2 {[%clk 0:00:19.7]} 58... Kg7 {[%clk 0:00:25.4]} 59. h5 {[%clk 0:00:20]}
59... Kh7 {[%clk 0:00:20.8]} 60. h6 {[%clk 0:00:19.7]} 60... Kg8 {[%clk
0:00:16.7]} 61. f5 {[%clk 0:00:19.5]} 61... Kh7 {[%clk 0:00:16]} 62. e6 {[%clk
0:00:18.2]} 62... fxe6 {[%clk 0:00:15.3]} 63. fxe6 {[%clk 0:00:17.4]} 63... Re1
{[%clk 0:00:11.6]} 64. Rxa2 {[%clk 0:00:14.5]} 64... Rxe6 {[%clk 0:00:11.6]} 65.
Rf2 {[%clk 0:00:13.9]} 65... Kxh6 {[%clk 0:00:11.6]} 66. Rf3 {[%clk 0:00:13.9]}
66... Rg6+ {[%clk 0:00:12]} 67. Rg3 {[%clk 0:00:13.9]} 67... Rxg3+ {[%clk
0:00:09.8]} 68. Kxg3 {[%clk 0:00:14.8]} 1/2-1/2

[Event "*** Titled Tuesday Blitz"]
[Site "Chess.com"]
[Date "2020.10.27"]
[Round "7"]
[White "Fighter008"]
[Black "scarabee43"]
[Result "0-1"]
[WhiteElo "2674"]
[BlackElo "2559"]
[TimeControl "180+1"]
[EndTime "11:20:19 PDT"]
[Termination "scarabee43 won by resignation"]

1. e4 {[%clk 0:03:00.9]} 1... c5 {[%clk 0:02:59.5]} 2. Nf3 {[%clk 0:03:00.6]}
2... e6 {[%clk 0:02:59.8]} 3. d4 {[%clk 0:03:00.1]} 3... cxd4 {[%clk 0:03:00.7]}
4. Nxd4 {[%clk 0:03:00.6]} 4... Nc6 {[%clk 0:03:01.4]} 5. Nc3 {[%clk 0:03:00.1]}
5... Qc7 {[%clk 0:03:01.9]} 6. Be3 {[%clk 0:02:59.9]} 6... a6 {[%clk 0:03:02.2]}
7. Qf3 {[%clk 0:02:59.4]} 7... Nf6 {[%clk 0:03:01.8]} 8. O-O-O {[%clk
0:02:53.3]} 8... Be7 {[%clk 0:03:02.2]} 9. h3 {[%clk 0:02:47.5]} 9... d6 {[%clk
0:02:54.7]} 10. g4 {[%clk 0:02:46.7]} 10... Nxd4 {[%clk 0:02:25.4]} 11. Bxd4
{[%clk 0:02:46]} 11... e5 {[%clk 0:02:21.9]} 12. Be3 {[%clk 0:02:38.7]} 12...
Be6 {[%clk 0:02:22.3]} 13. g5 {[%clk 0:02:33]} 13... Nd7 {[%clk 0:02:22.2]} 14.
Kb1 {[%clk 0:02:33]} 14... Rc8 {[%clk 0:02:21.2]} 15. Bd2 {[%clk 0:02:14.3]}
15... b5 {[%clk 0:02:18.9]} 16. Bd3 {[%clk 0:02:11.3]} 16... Nc5 {[%clk
0:02:13.5]} 17. h4 {[%clk 0:02:02.3]} 17... Qd7 {[%clk 0:01:51.1]} 18. Rhg1
{[%clk 0:01:56.4]} 18... b4 {[%clk 0:01:41.1]} 19. Nd5 {[%clk 0:01:52]} 19...
Bxd5 {[%clk 0:01:36.5]} 20. exd5 {[%clk 0:01:51.8]} 20... Nxd3 {[%clk
0:01:37.1]} 21. Qxd3 {[%clk 0:01:52.2]} 21... a5 {[%clk 0:01:35.1]} 22. f4
{[%clk 0:01:49.7]} 22... O-O {[%clk 0:01:30]} 23. f5 {[%clk 0:01:48.6]} 23...
Bd8 {[%clk 0:01:24.1]} 24. h5 {[%clk 0:01:43.4]} 24... a4 {[%clk 0:01:17.6]} 25.
Bxb4 {[%clk 0:01:38.1]} 25... Bb6 {[%clk 0:01:18]} 26. Rg2 {[%clk 0:01:36.8]}
26... Bc5 {[%clk 0:01:17.7]} 27. Bxc5 {[%clk 0:01:32.4]} 27... Rxc5 {[%clk
0:01:18.3]} 28. g6 {[%clk 0:01:28.5]} 28... fxg6 {[%clk 0:01:15.6]} 29. fxg6
{[%clk 0:01:10.2]} 29... h6 {[%clk 0:01:15.9]} 30. Qe4 {[%clk 0:01:08.7]} 30...
Qb5 {[%clk 0:01:10.5]} 31. a3 {[%clk 0:01:05.3]} 31... Rc4 {[%clk 0:01:04.3]}
32. Qe3 {[%clk 0:00:47.8]} 32... Rb8 {[%clk 0:01:02.8]} 33. c3 {[%clk
0:00:46.9]} 33... Qb3 {[%clk 0:01:00.4]} 34. Rf1 {[%clk 0:00:42.7]} 34... Rxc3
{[%clk 0:00:57.3]} 35. Qf2 {[%clk 0:00:40.5]} 35... Rcc8 {[%clk 0:00:51.5]} 36.
Qf7+ {[%clk 0:00:40.2]} 36... Kh8 {[%clk 0:00:51.4]} 37. Rgf2 {[%clk 0:00:40.7]}
37... Qd3+ {[%clk 0:00:48.7]} 38. Ka1 {[%clk 0:00:40.3]} 38... Rg8 {[%clk
0:00:45.6]} 39. Qe6 {[%clk 0:00:27.6]} 39... e4 {[%clk 0:00:44.6]} 40. Re1
{[%clk 0:00:26.8]} 40... Qd4 {[%clk 0:00:27.7]} 41. Rfe2 {[%clk 0:00:25.1]}
41... Rb3 {[%clk 0:00:27.4]} 42. Qxe4 {[%clk 0:00:19.6]} 42... Rxa3+ {[%clk
0:00:22.3]} 43. Kb1 {[%clk 0:00:19.7]} 43... Qxe4+ {[%clk 0:00:21]} 44. Rxe4
{[%clk 0:00:19.8]} 44... Rd3 {[%clk 0:00:21.3]} 45. Re8 {[%clk 0:00:19.5]} 45...
Rd1+ {[%clk 0:00:20]} 46. Kc2 {[%clk 0:00:16.7]} 46... Rxe1 {[%clk 0:00:19.6]}
47. Rxe1 {[%clk 0:00:16.7]} 47... Rc8+ {[%clk 0:00:19.7]} 48. Kb1 {[%clk
0:00:16.8]} 48... Kg8 {[%clk 0:00:19.3]} 49. Re6 {[%clk 0:00:15.1]} 49... Rd8
{[%clk 0:00:19.3]} 50. Ka2 {[%clk 0:00:14.6]} 50... Kf8 {[%clk 0:00:19.5]} 51.
Ka3 {[%clk 0:00:15]} 51... Rb8 {[%clk 0:00:17.9]} 52. Rxd6 {[%clk 0:00:14]}
52... Rb3+ {[%clk 0:00:18.4]} 53. Ka2 {[%clk 0:00:13.5]} 53... Rh3 {[%clk
0:00:18]} 54. Rd8+ {[%clk 0:00:11.3]} 54... Ke7 {[%clk 0:00:18.4]} 55. Rg8
{[%clk 0:00:11.1]} 55... Kf6 {[%clk 0:00:16.5]} 56. d6 {[%clk 0:00:10.3]} 56...
Rd3 {[%clk 0:00:17]} 57. Rd8 {[%clk 0:00:09.5]} 57... Kg5 {[%clk 0:00:17.2]} 58.
Rd7 {[%clk 0:00:07.4]} 58... Kxh5 {[%clk 0:00:16.8]} 59. Rxg7 {[%clk 0:00:07.1]}
59... Rxd6 {[%clk 0:00:17.4]} 60. Ka3 {[%clk 0:00:07.6]} 60... Rxg6 {[%clk
0:00:16.9]} 61. Rxg6 {[%clk 0:00:04.2]} 61... Kxg6 {[%clk 0:00:17.2]} 62. Kxa4
{[%clk 0:00:05.1]} 62... h5 {[%clk 0:00:17.1]} 63. b4 {[%clk 0:00:05.2]} 63...
h4 {[%clk 0:00:16]} 64. b5 {[%clk 0:00:05.7]} 64... h3 {[%clk 0:00:16.4]} 65. b6
{[%clk 0:00:04.7]} 65... h2 {[%clk 0:00:16.7]} 66. b7 {[%clk 0:00:05.2]} 66...
h1=Q {[%clk 0:00:16.8]} 67. b8=Q {[%clk 0:00:05.3]} 67... Qa1+ {[%clk
0:00:16.8]} 0-1

[Event "*** Titled Tuesday Blitz"]
[Site "Chess.com"]
[Date "2020.10.27"]
[Round "7"]
[White "SergeyShtyka"]
[Black "UCantHandleDenker"]
[Result "1/2-1/2"]
[WhiteElo "2346"]
[BlackElo "2501"]
[TimeControl "180+1"]
[EndTime "11:20:59 PDT"]
[Termination "Game drawn - insufficient material"]

1. e4 {[%clk 0:03:00.9]} 1... c5 {[%clk 0:02:58.2]} 2. Nf3 {[%clk 0:03:00.8]}
2... d6 {[%clk 0:02:58.1]} 3. d4 {[%clk 0:03:01.2]} 3... cxd4 {[%clk 0:02:58.1]}
4. Nxd4 {[%clk 0:03:02.1]} 4... Nf6 {[%clk 0:02:58.3]} 5. Nc3 {[%clk 0:03:01.9]}
5... g6 {[%clk 0:02:58.2]} 6. f4 {[%clk 0:03:00.2]} 6... Bg7 {[%clk 0:02:56.7]}
7. e5 {[%clk 0:02:59.9]} 7... Nh5 {[%clk 0:02:57.2]} 8. Bb5+ {[%clk 0:02:58.6]}
8... Bd7 {[%clk 0:02:57.7]} 9. exd6 {[%clk 0:02:54.3]} 9... O-O {[%clk
0:02:53.7]} 10. O-O {[%clk 0:02:51.1]} 10... exd6 {[%clk 0:02:46]} 11. Bxd7
{[%clk 0:02:43.2]} 11... Nxd7 {[%clk 0:02:44.3]} 12. f5 {[%clk 0:02:41.8]} 12...
Ne5 {[%clk 0:02:35.3]} 13. Nd5 {[%clk 0:02:15.2]} 13... Re8 {[%clk 0:01:58.6]}
14. g4 {[%clk 0:02:10.7]} 14... Nc6 {[%clk 0:01:08.7]} 15. Nf3 {[%clk
0:01:42.5]} 15... Nf6 {[%clk 0:00:51.4]} 16. Bg5 {[%clk 0:01:41]} 16... h6
{[%clk 0:00:49.7]} 17. fxg6 {[%clk 0:00:45.3]} 17... fxg6 {[%clk 0:00:43.3]} 18.
Nxf6+ {[%clk 0:00:44.3]} 18... Bxf6 {[%clk 0:00:43.6]} 19. Bxh6 {[%clk
0:00:44.4]} 19... Qb6+ {[%clk 0:00:31]} 20. Kh1 {[%clk 0:00:42]} 20... Qb4
{[%clk 0:00:30.9]} 21. Bg5 {[%clk 0:00:34.2]} 21... Bg7 {[%clk 0:00:26.2]} 22.
Qd5+ {[%clk 0:00:30.9]} 22... Kh7 {[%clk 0:00:25.7]} 23. h3 {[%clk 0:00:23.4]}
23... Qe4 {[%clk 0:00:23.9]} 24. Qxe4 {[%clk 0:00:20.5]} 24... Rxe4 {[%clk
0:00:24.8]} 25. Rae1 {[%clk 0:00:17.2]} 25... Rae8 {[%clk 0:00:25.3]} 26. c3
{[%clk 0:00:16.4]} 26... Kg8 {[%clk 0:00:23.2]} 27. Kg2 {[%clk 0:00:16.7]} 27...
b5 {[%clk 0:00:22.2]} 28. Rxe4 {[%clk 0:00:16.9]} 28... Rxe4 {[%clk 0:00:21.6]}
29. Re1 {[%clk 0:00:17.8]} 29... Ra4 {[%clk 0:00:22]} 30. a3 {[%clk 0:00:17.5]}
30... a5 {[%clk 0:00:22.6]} 31. Nd2 {[%clk 0:00:15.5]} 31... b4 {[%clk
0:00:21.3]} 32. cxb4 {[%clk 0:00:15.5]} 32... axb4 {[%clk 0:00:20.6]} 33. Re4
{[%clk 0:00:15.4]} 33... d5 {[%clk 0:00:20.1]} 34. Re6 {[%clk 0:00:13.6]} 34...
Nd4 {[%clk 0:00:19.2]} 35. Rd6 {[%clk 0:00:12.3]} 35... bxa3 {[%clk 0:00:18.6]}
36. bxa3 {[%clk 0:00:12.6]} 36... Rxa3 {[%clk 0:00:19.1]} 37. Rxd5 {[%clk
0:00:12.1]} 37... Ra2 {[%clk 0:00:19.5]} 38. Kg3 {[%clk 0:00:09.3]} 38... Ne2+
{[%clk 0:00:18.5]} 39. Kf2 {[%clk 0:00:08.5]} 39... Nc3 {[%clk 0:00:17.9]} 40.
Rd8+ {[%clk 0:00:08.4]} 40... Kf7 {[%clk 0:00:17.9]} 41. Kg3 {[%clk 0:00:08.5]}
41... Be5+ {[%clk 0:00:16.9]} 42. Kf3 {[%clk 0:00:05.6]} 42... Ra3 {[%clk
0:00:17.1]} 43. Kg2 {[%clk 0:00:04.9]} 43... Ra2 {[%clk 0:00:16.8]} 44. Kf3
{[%clk 0:00:05.2]} 44... Ra3 {[%clk 0:00:17.1]} 45. Rd3 {[%clk 0:00:04.2]} 45...
Ke6 {[%clk 0:00:14.8]} 46. Ne4 {[%clk 0:00:04.5]} 46... Kf7 {[%clk 0:00:07.9]}
47. Nxc3 {[%clk 0:00:04.6]} 47... Rxc3 {[%clk 0:00:08.4]} 48. Rxc3 {[%clk
0:00:04.9]} 48... Bxc3 {[%clk 0:00:09.3]} 49. Ke4 {[%clk 0:00:05.6]} 49... Bg7
{[%clk 0:00:09.8]} 50. Kd5 {[%clk 0:00:05.9]} 50... Bf8 {[%clk 0:00:10.2]} 51.
Bh4 {[%clk 0:00:06.3]} 51... Bg7 {[%clk 0:00:10.7]} 52. Bg3 {[%clk 0:00:06.2]}
52... Bf8 {[%clk 0:00:11]} 53. Bf4 {[%clk 0:00:06.7]} 53... Bg7 {[%clk
0:00:11.3]} 54. Ke4 {[%clk 0:00:07.1]} 54... Bf8 {[%clk 0:00:11.7]} 55. Be3
{[%clk 0:00:07.6]} 55... Be7 {[%clk 0:00:12.2]} 56. Bd2 {[%clk 0:00:08.2]} 56...
Bd8 {[%clk 0:00:12.7]} 57. Bc1 {[%clk 0:00:08.7]} 57... Be7 {[%clk 0:00:13.3]}
58. Bb2 {[%clk 0:00:09.1]} 58... Bd8 {[%clk 0:00:13.9]} 59. Ba3 {[%clk
0:00:09.7]} 59... Bf6 {[%clk 0:00:13.9]} 60. Bc5 {[%clk 0:00:09.8]} 60... Bg5
{[%clk 0:00:14]} 61. Be3 {[%clk 0:00:09.6]} 61... Bh4 {[%clk 0:00:14.2]} 62. Bf4
{[%clk 0:00:09.8]} 62... Be7 {[%clk 0:00:14.1]} 63. Bg3 {[%clk 0:00:09.9]} 63...
Bg5 {[%clk 0:00:14]} 64. Bf2 {[%clk 0:00:09.8]} 64... Be7 {[%clk 0:00:14.5]} 65.
Bd4 {[%clk 0:00:09.9]} 65... Bg5 {[%clk 0:00:14.5]} 66. Kf3 {[%clk 0:00:10]}
66... Be7 {[%clk 0:00:14.9]} 67. Bc3 {[%clk 0:00:10]} 67... Bd6 {[%clk
0:00:15.2]} 68. Ke4 {[%clk 0:00:09.9]} 68... Be7 {[%clk 0:00:15.7]} 69. Bd2
{[%clk 0:00:09.8]} 69... Bd8 {[%clk 0:00:16.2]} 70. Be1 {[%clk 0:00:10.2]} 70...
Be7 {[%clk 0:00:16.7]} 71. h4 {[%clk 0:00:10.6]} 71... Bd8 {[%clk 0:00:16.3]}
72. Bf2 {[%clk 0:00:11.1]} 72... Be7 {[%clk 0:00:16.6]} 73. Bg3 {[%clk
0:00:11.5]} 73... Bf6 {[%clk 0:00:16.8]} 74. Kd5 {[%clk 0:00:10.7]} 74... Be7
{[%clk 0:00:17]} 75. Kc6 {[%clk 0:00:09.7]} 75... Bd8 {[%clk 0:00:17]} 76. Kd7
{[%clk 0:00:09.8]} 76... Be7 {[%clk 0:00:15.8]} 77. h5 {[%clk 0:00:09.1]} 77...
gxh5 {[%clk 0:00:15.4]} 78. gxh5 {[%clk 0:00:09.7]} 78... Bg5 {[%clk 0:00:16]}
79. Kd6 {[%clk 0:00:09.1]} 79... Kg7 {[%clk 0:00:16.2]} 80. Ke6 {[%clk
0:00:09.3]} 80... Kh6 {[%clk 0:00:16.9]} 81. Kf5 {[%clk 0:00:09.7]} 81... Kxh5
{[%clk 0:00:17.5]} 1/2-1/2

[Event "*** Titled Tuesday Blitz"]
[Site "Chess.com"]
[Date "2020.10.27"]
[Round "7"]
[White "Ze-Pequeno"]
[Black "Th3_Hound"]
[Result "1/2-1/2"]
[WhiteElo "2328"]
[BlackElo "2497"]
[TimeControl "180+1"]
[EndTime "11:21:18 PDT"]
[Termination "Game drawn by repetition"]

1. e4 {[%clk 0:03:00.9]} 1... e5 {[%clk 0:02:59]} 2. Nf3 {[%clk 0:03:00.5]} 2...
Nc6 {[%clk 0:02:59]} 3. Nc3 {[%clk 0:03:00.9]} 3... Nf6 {[%clk 0:02:58.7]} 4. d4
{[%clk 0:03:01]} 4... exd4 {[%clk 0:02:58.4]} 5. Nxd4 {[%clk 0:03:01.5]} 5...
Bb4 {[%clk 0:02:55.1]} 6. Nxc6 {[%clk 0:03:01.1]} 6... bxc6 {[%clk 0:02:56]} 7.
Bd3 {[%clk 0:03:01.7]} 7... d5 {[%clk 0:02:56]} 8. exd5 {[%clk 0:03:02.6]} 8...
cxd5 {[%clk 0:02:56.5]} 9. O-O {[%clk 0:03:02.4]} 9... O-O {[%clk 0:02:57]} 10.
Bg5 {[%clk 0:03:02.1]} 10... c6 {[%clk 0:02:56.9]} 11. Qf3 {[%clk 0:03:00.6]}
11... Bd6 {[%clk 0:02:55.8]} 12. h3 {[%clk 0:02:59.6]} 12... Rb8 {[%clk
0:02:55.2]} 13. b3 {[%clk 0:02:59.2]} 13... Be5 {[%clk 0:02:55.4]} 14. Bd2
{[%clk 0:02:58.6]} 14... Re8 {[%clk 0:02:53.1]} 15. Rfe1 {[%clk 0:02:57.7]}
15... Rb7 {[%clk 0:02:15.4]} 16. Rad1 {[%clk 0:02:50]} 16... Rbe7 {[%clk
0:02:13.5]} 17. Na4 {[%clk 0:02:25.6]} 17... Qd6 {[%clk 0:01:57.6]} 18. Be3
{[%clk 0:02:08.5]} 18... d4 {[%clk 0:01:42.4]} 19. Bd2 {[%clk 0:02:00.2]} 19...
c5 {[%clk 0:01:40.8]} 20. Nb2 {[%clk 0:01:55.6]} 20... Bb7 {[%clk 0:01:40.2]}
21. Qf5 {[%clk 0:01:53.1]} 21... Qc6 {[%clk 0:01:28.8]} 22. f3 {[%clk
0:01:43.7]} 22... Bc8 {[%clk 0:01:15.9]} 23. Qg5 {[%clk 0:01:41.7]} 23... h6
{[%clk 0:01:14.4]} 24. Qh4 {[%clk 0:01:41.3]} 24... Nd5 {[%clk 0:01:11.7]} 25.
Nc4 {[%clk 0:01:28.9]} 25... Bf6 {[%clk 0:01:08.2]} 26. Qf2 {[%clk 0:01:28.2]}
26... Ba6 {[%clk 0:01:04.8]} 27. Rxe7 {[%clk 0:01:26.3]} 27... Rxe7 {[%clk
0:01:05.7]} 28. Re1 {[%clk 0:01:26.2]} 28... Bxc4 {[%clk 0:01:05.2]} 29. Bxc4
{[%clk 0:01:25.6]} 29... Ne3 {[%clk 0:01:04.1]} 30. Bd3 {[%clk 0:01:20.9]} 30...
Qe8 {[%clk 0:00:52.6]} 31. Be4 {[%clk 0:01:14.1]} 31... Be5 {[%clk 0:00:44.4]}
32. Kh1 {[%clk 0:01:06.7]} 32... f5 {[%clk 0:00:44.5]} 33. Bd3 {[%clk
0:01:02.7]} 33... Bd6 {[%clk 0:00:44.6]} 34. f4 {[%clk 0:00:45.9]} 34... Kh8
{[%clk 0:00:35.6]} 35. Qf3 {[%clk 0:00:43.6]} 35... Qb8 {[%clk 0:00:25.1]} 36.
g3 {[%clk 0:00:40.3]} 36... Qe8 {[%clk 0:00:23.6]} 37. Bxe3 {[%clk 0:00:31.5]}
37... dxe3 {[%clk 0:00:20.7]} 38. Bxf5 {[%clk 0:00:28.5]} 38... e2 {[%clk
0:00:18.8]} 39. Bd3 {[%clk 0:00:27]} 39... Re3 {[%clk 0:00:18.9]} 40. Rxe2
{[%clk 0:00:24.1]} 40... Rxe2 {[%clk 0:00:19.3]} 41. Qxe2 {[%clk 0:00:24.3]}
41... Qd7 {[%clk 0:00:19.7]} 42. Qe4 {[%clk 0:00:23.8]} 42... Qxh3+ {[%clk
0:00:19.1]} 43. Kg1 {[%clk 0:00:23]} 43... Qxg3+ {[%clk 0:00:19.7]} 44. Kf1
{[%clk 0:00:23.1]} 44... Qxf4+ {[%clk 0:00:19.8]} 45. Qxf4 {[%clk 0:00:23]}
45... Bxf4 {[%clk 0:00:20.7]} 46. Kg2 {[%clk 0:00:23.6]} 46... g5 {[%clk
0:00:20.1]} 47. Kf3 {[%clk 0:00:23.7]} 47... Kg7 {[%clk 0:00:20.6]} 48. Kg4
{[%clk 0:00:24]} 48... Kf6 {[%clk 0:00:20.9]} 49. a4 {[%clk 0:00:23.2]} 49...
Ke5 {[%clk 0:00:21.1]} 50. Bh7 {[%clk 0:00:21.8]} 50... Kd4 {[%clk 0:00:21.1]}
51. Bg6 {[%clk 0:00:21.8]} 51... Kc3 {[%clk 0:00:21.4]} 52. Bf5 {[%clk
0:00:21.5]} 52... Be5 {[%clk 0:00:21.4]} 53. Bg6 {[%clk 0:00:21.2]} 53... a5
{[%clk 0:00:21.7]} 54. Bf5 {[%clk 0:00:21.2]} 54... c4 {[%clk 0:00:22.1]} 55.
bxc4 {[%clk 0:00:20.3]} 55... Kxc4 {[%clk 0:00:23]} 56. Kh5 {[%clk 0:00:20.2]}
56... Bg7 {[%clk 0:00:22.1]} 57. Kg4 {[%clk 0:00:19.8]} 57... Kc3 {[%clk
0:00:21.9]} 58. Kh5 {[%clk 0:00:19.4]} 58... Bf8 {[%clk 0:00:22.2]} 59. Kg4
{[%clk 0:00:19.5]} 59... Bc5 {[%clk 0:00:21.8]} 60. Kh5 {[%clk 0:00:19.8]} 60...
Be3 {[%clk 0:00:22.1]} 61. Kg4 {[%clk 0:00:16.9]} 61... Kd2 {[%clk 0:00:20.6]}
62. Kh5 {[%clk 0:00:16.1]} 62... Ke2 {[%clk 0:00:20.7]} 63. Kg4 {[%clk
0:00:16.4]} 63... Kf2 {[%clk 0:00:20.8]} 64. Be4 {[%clk 0:00:16]} 64... Ke2
{[%clk 0:00:18.4]} 65. Bf5 {[%clk 0:00:16.2]} 65... Bc5 {[%clk 0:00:17.7]} 66.
Bg6 {[%clk 0:00:16.4]} 66... Ke3 {[%clk 0:00:17.9]} 67. Bf5 {[%clk 0:00:16.2]}
67... Kd4 {[%clk 0:00:18.1]} 68. Bg6 {[%clk 0:00:16]} 68... Ke5 {[%clk
0:00:18.4]} 69. Bd3 {[%clk 0:00:15.9]} 69... Be7 {[%clk 0:00:18.6]} 70. Bh7
{[%clk 0:00:14.7]} 70... h5+ {[%clk 0:00:18]} 71. Kxh5 {[%clk 0:00:13.6]} 71...
Kf4 {[%clk 0:00:18.9]} 72. Bg8 {[%clk 0:00:10.5]} 72... g4 {[%clk 0:00:19.2]}
73. Bd5 {[%clk 0:00:10.6]} 73... g3 {[%clk 0:00:16.4]} 74. Bg2 {[%clk
0:00:09.4]} 74... Bd8 {[%clk 0:00:14.7]} 75. Bh1 {[%clk 0:00:09]} 75... Ke3
{[%clk 0:00:13.4]} 76. Kg4 {[%clk 0:00:07.6]} 76... Kf2 {[%clk 0:00:13.8]} 77.
Kh3 {[%clk 0:00:07.9]} 77... Bc7 {[%clk 0:00:13.1]} 78. Bg2 {[%clk 0:00:08.8]}
78... Bd6 {[%clk 0:00:13.1]} 79. Bc6 {[%clk 0:00:09.7]} 79... Ke1 {[%clk
0:00:12.5]} 80. Bg2 {[%clk 0:00:10.6]} 80... Kd2 {[%clk 0:00:12.8]} 81. Bc6
{[%clk 0:00:10.8]} 81... Kxc2 {[%clk 0:00:12.6]} 82. Kg2 {[%clk 0:00:11.7]}
82... Kd2 {[%clk 0:00:12.7]} 83. Bb5 {[%clk 0:00:12.6]} 83... Ke3 {[%clk
0:00:12.9]} 84. Be8 {[%clk 0:00:13.5]} 84... Kd4 {[%clk 0:00:13.4]} 85. Bd7
{[%clk 0:00:14.2]} 85... Kc3 {[%clk 0:00:13.7]} 86. Be8 {[%clk 0:00:15.1]} 86...
Kb4 {[%clk 0:00:14.1]} 87. Bb5 {[%clk 0:00:16]} 87... Kc3 {[%clk 0:00:14.3]} 88.
Be8 {[%clk 0:00:16.8]} 88... Kb4 {[%clk 0:00:15.2]} 89. Bb5 {[%clk 0:00:14.3]}
89... Kc3 {[%clk 0:00:16.1]} 90. Be8 {[%clk 0:00:14.7]} 1/2-1/2

[Event "*** Titled Tuesday Blitz"]
[Site "Chess.com"]
[Date "2020.10.27"]
[Round "8"]
[White "barbara25"]
[Black "TheChessChannel"]
[Result "0-1"]
[WhiteElo "2271"]
[BlackElo "2441"]
[TimeControl "180+1"]
[EndTime "11:23:03 PDT"]
[Termination "TheChessChannel won by resignation"]

1. e4 {[%clk 0:03:00.9]} 1... e6 {[%clk 0:03:00.9]} 2. d4 {[%clk 0:02:59.9]}
2... d5 {[%clk 0:03:01.2]} 3. Bd3 {[%clk 0:02:59.5]} 3... Nf6 {[%clk 0:03:00.6]}
4. e5 {[%clk 0:02:58.3]} 4... Nfd7 {[%clk 0:02:58.2]} 5. c3 {[%clk 0:02:58.6]}
5... c5 {[%clk 0:02:56.7]} 6. Ne2 {[%clk 0:02:58.3]} 6... Nc6 {[%clk 0:02:54.2]}
7. O-O {[%clk 0:02:57.3]} 7... Qb6 {[%clk 0:02:51.5]} 8. a3 {[%clk 0:02:57.1]}
8... cxd4 {[%clk 0:02:48.5]} 9. cxd4 {[%clk 0:02:56.7]} 9... Nxd4 {[%clk
0:02:42.9]} 10. Be3 {[%clk 0:02:56.4]} 10... Nxe2+ {[%clk 0:02:39.9]} 11. Qxe2
{[%clk 0:02:56.3]} 11... d4 {[%clk 0:02:37.5]} 12. Bd2 {[%clk 0:02:55.7]} 12...
Qxb2 {[%clk 0:02:35.4]} 0-1